Cogmind - Beta 11 X8 @@@ ROGUE MODE // 2021.10.26 @ 00:50:53 Player: thomas Result: Destroyed by Y-45 Defender with Beam Rifle Performance ------------- Evolutions (1) 500 Regions Visited (2) 400 Robots Destroyed (26) 130 Value Destroyed (640) 640 Prototype IDs (0) 0 Alien Tech Used (0) 0 Bonus (0) 0 TOTAL SCORE: 1670 Bonus ------- None Cogmind --------- Core Integrity 0/400 Matter 130/300 Energy 100/100 System Corruption 0% Temperature Cool (9) Movement Core (350) Ox6 Location -9/Materials Parts ------- > --- POWER (1) -------- (None) > --- PROPULSION (3) --- (None) > --- UTILITY (3) ------ Large Storage Unit Signal Interpreter Targeting Computer > --- WEAPON (2) ------- (None) > --- INVENTORY (15) --- Ion Engine Ion Engine Ion Engine Ion Engine Light Ion Engine Aluminum Leg Aluminum Leg Aluminum Leg Aluminum Leg Wheel Sensor Array Targeting Computer Peak State ------------ > --- POWER ------------ Ion Engine > --- PROPULSION ------- Aluminum Leg Aluminum Leg Aluminum Leg > --- UTILITY ---------- Large Storage Unit Sensor Array Signal Interpreter > --- WEAPON ----------- Small Laser Grenade Launcher > --- INVENTORY -------- Ion Engine Ion Engine Ion Engine Light Ion Engine Aluminum Leg Aluminum Leg Sensor Array Targeting Computer Targeting Computer Small Laser [Rating: 10] Favorites ----------- Power Ion Engine Engine Ion Engine Propulsion Aluminum Leg Leg Aluminum Leg Wheel Wheel Utility Sensor Array Device Sensor Array Storage Large Storage Unit Processor Signal Interpreter Weapon Small Laser Energy Gun Small Laser Ballistic Gun Light Assault Rifle Launcher Grenade Launcher Build | -11 -10 -9 ------- Run | Scr Mat Mat Slots Evolved 2 | . . 2 Power . | . . . Propulsion 1 | . . 1 Utility 1 | . . 1 Weapon . | . . . Parts Attached 41 | 6 24 11 Power 5 | 1 3 1 Engine 5 | 1 3 1 Core . | . . . Reactor . | . . . Propulsion 16 | 2 8 6 Treads . | . . . Leg 12 | 2 8 2 Wheel 4 | . . 4 Hover . | . . . Flight . | . . . Utility 11 | 1 8 2 Device 3 | . 3 . Storage 6 | 1 5 . Processor 2 | . . 2 Hackware . | . . . Protection . | . . . Artifact . | . . . Weapon 9 | 2 5 2 Energy Gun 5 | . 3 2 Energy Cannon . | . . . Ballistic Gun 3 | 2 1 . Ballistic Cannon . | . . . Launcher 1 | . 1 . Special Weapon . | . . . Impact Weapon . | . . . Slashing Weapon . | . . . Piercing Weapon . | . . . Special Melee Weapon . | . . . Unidentified Prototypes . | . . . Parts Lost 10 | . 2 8 Power . | . . . Propulsion 4 | . . 4 Utility 1 | . . 1 Weapon 5 | . 2 3 Highest Loss Streak 5 | . 2 5 Average Slot Usage (%) 94 | . 95 92 Engine 12 | . 14 10 Leg 27 | . 28 25 Device 8 | . 9 6 Storage 13 | . 14 11 Processor 3 | . . 14 Energy Gun 11 | . 11 12 Ballistic Gun 9 | . 12 . Launcher 4 | . 3 6 Naked Turns . | . . . Heaviest Build 30 | 11 30 30 Greatest Support 30 | 20 20 30 Greatest Overweight (x) 6 | . 1 6 Average Overweight (x) . | . . . Largest Inventory Capacity 15 | 8 15 15 Average Capacity 11 | 7 10 15 Most Carried 12 | 4 10 12 Average Carried 8 | 2 8 10 Final Capacity 15 | 8 15 15 Final Carried 12 | 4 10 12 Class Distribution -------------------- 64% | Mutant 35% | Scavenger-Mutant Dominant Class ---------------- Mutant | -10/Materials Scavenger-Mutant | -9/Materials Resources | -11 -10 -9 ----------- Run | Scr Mat Mat Matter Collected 584 | 217 367 . Remotely . | . . . Salvage Created 650 | . 523 127 Parts 49 | . 40 9 Haulers Intercepted . | . . . Recyclers Shooed 2 | . 1 1 Parts Field Recycled . | . . . Retrieved Matter . | . . . Parts Self-Destructed . | . . . Prevented . | . . . Kills | -11 -10 -9 ------- Run | Scr Mat Mat Combat Hostiles Destroyed 22 | . 13 9 Guns 12 | . 11 1 AOE 10 | . 2 8 Classes Destroyed 6 | . 5 1 Builder 2 | . 1 1 Recycler 1 | . 1 . Watcher 1 | . 1 . Swarmer 7 | . 3 4 Grunt 14 | . 10 4 Brawler 1 | . . 1 Best Kill Streak 10 | . 6 10 Combat Bots Only 9 | . 5 9 Max Kills in Single Turn 4 | . 3 4 Gunslinging 1 | . 1 . Exploded 4 | . 2 4 Melee . | . . . Uniques/NPCs Destroyed . | . . . Combat | -11 -10 -9 -------- Run | Scr Mat Mat Damage Taken 1729 | . 666 1063 Core 491 | . 91 400 Absorbed by Shields . | . . . Core Remaining (%) 81 | 100 63 . Volleys Fired 60 | . 51 9 Largest 2 | . 2 2 Hottest 80 | . 70 80 Shots Fired 118 | . 100 18 Gun 110 | . 99 11 Cannon . | . . . Launcher 8 | . 1 7 Special . | . . . Kinetic 75 | . 75 . Thermal 35 | . 24 11 Explosive 8 | . 1 7 Electromagnetic . | . . . Robot Hit Streak 10 | . 10 8 Robot Miss Streak 5 | . 5 2 Penetration Max . | . . . Secondary Targets 4 | . 4 . Max Gunslinging Chain 1 | . 1 . Shots Hit Robots 77 | . 64 13 Core Hits 50 | . 31 19 Critical Kills . | . . . Critical Parts Destroyed . | . . . Critical Strikes . | . . . Melee Attacks . | . . . Impact . | . . . Slashing . | . . . Piercing . | . . . Sneak Attacks . | . . . Combat Hostiles . | . . . Follow-up Attacks . | . . . Damage Inflicted 1560 | . 740 820 Guns 750 | . 635 115 Cannons . | . . . Explosions 806 | . 105 701 Melee . | . . . Ramming 4 | . . 4 Kinetic 450 | . 450 . Thermal 300 | . 185 115 Explosive 806 | . 105 701 Electromagnetic . | . . . Impact . | . . . Slashing . | . . . Piercing . | . . . Highest Corruption . | . . . Average Corruption . | . . . Corruption Purged . | . . . Overload Shots . | . . . Overflow Damage 2 | . . 2 Projectiles . | . . . Explosions 2 | . . 2 Melee . | . . . Knockbacks . | . . . Impact . | . . . Kinetic . | . . . Secondary . | . . . Self-Inflicted Damage 29 | . . 29 Shots 2 | . . 2 Rammed 1 | . . 1 Targets Rammed 1 | . . 1 Kicked . | . . . Crushed . | . . . Highest Temperature 94 | . 94 36 Average Temperature 24 | . 25 17 Received Heat Transfer 738 | . 354 384 Siege Activations . | . . . Robots Corrupted . | . . . Combat Hostiles . | . . . Parts Fried . | . . . Impact Corruptions . | . . . Robots Melted . | . . . Combat Hostiles . | . . . Parts Melted . | . . . Heat Transferred 675 | . 425 250 Parts Sabotaged . | . . . Parts Stolen . | . . . Parts Stripped . | . . . Power Chain Reactions . | . . . Missiles Intercepted . | . . . Alert | -11 -10 -9 ------- Run | Scr Mat Mat Peak Influence 289 | . 289 230 Initial 37 | . . 37 Average 127 | . 137 122 Maximum Alert Level 1 | . 1 1 Low Security (%) 74 | 100 76 63 Level 1 25 | . 23 36 Level 2 . | . . . Level 3 . | . . . Level 4 . | . . . Level 5 . | . . . High Security . | . . . Max Security . | . . . Squads Dispatched 4 | . 2 2 Investigation . | . . . Extermination . | . . . Reinforcement 4 | . 2 2 Assault . | . . . Garrison . | . . . Intercept . | . . . Construction Impeded 1 | . . 1 Haulers Reinforced . | . . . Active Scanning Responses . | . . . Cargo Convoy Interrupts . | . . . Stealth | -11 -10 -9 --------- Run | Scr Mat Mat Distress Signals 4 | . 2 2 Communications Jammed . | . . . Distress Signals . | . . . Times Spotted 42 | . 23 19 Peak Tracking Total 10 | . 6 10 Tactical Retreats 1 | . 1 . Traps | -11 -10 -9 ------- Run | Scr Mat Mat Traps Triggered 2 | . 1 1 Indirectly . | . . . Trap Hack Attempts . | . . . Triggered . | . . . Disarmed . | . . . Reprogrammed . | . . . Reused . | . . . Traps Extracted . | . . . Installed . | . . . Triggered . | . . . Machines | -11 -10 -9 ---------- Run | Scr Mat Mat Machines Disabled . | . . . Max in Single Turn . | . . . Machines Sabotaged . | . . . Garrisons Compromised . | . . . Overloaded Fab Kills . | . . . Hacking | -11 -10 -9 --------- Run | Scr Mat Mat Machines Accessed 7 | . 6 1 Terminals 7 | . 6 1 Fabricators . | . . . Repair Stations . | . . . Recycling Units . | . . . Scanalyzers . | . . . Garrison Access . | . . . Total Hacks 19 | . 16 3 Successful 8 | . 7 1 Failed 11 | . 9 2 Catastrophic 2 | . 2 . Database Lockouts . | . . . Manual 15 | . 13 2 Terminals 19 | . 16 3 Fabricators . | . . . Repair Stations . | . . . Recycling Units . | . . . Scanalyzers . | . . . Garrison Access . | . . . Terminal Hacks 4 | . 4 . Robot Analysis 2 | . 2 . Terminal Index 1 | . 1 . Zone Layout 1 | . 1 . Fabricator Hacks . | . . . Repair Station Hacks . | . . . Recycling Unit Hacks . | . . . Scanalyzer . | . . . Garrison Access Hacks . | . . . Unauthorized Hacks 4 | . 3 1 Terminals 4 | . 3 1 Track 4 | . 3 1 Fabricators . | . . . Repair Stations . | . . . Recycling Units . | . . . Scanalyzers . | . . . Garrison Access . | . . . Data Cores Recovered . | . . . Used . | . . . Hacking Detections 7 | . 6 1 Full Trace Events . | . . . Feedback Events . | . . . Feedback Blocked . | . . . Robot Schematics Acquired . | . . . Robots Built . | . . . Authchips . | . . . Time . | . . . Total Robot Build Rating . | . . . Part Schematics Acquired . | . . . Parts Built . | . . . Authchips . | . . . Time . | . . . Total Part Build Rating . | . . . Parts Repaired . | . . . Time . | . . . Parts Recycled . | . . . Recycled Matter . | . . . Retrieved Matter . | . . . Retrieved Components . | . . . Parts Scanalyzed . | . . . Part Schematics Acquired . | . . . Parts Damaged . | . . . Bothacking | -11 -10 -9 ------------ Run | Scr Mat Mat Used RIF Installer . | . . . Robots Hacked . | . . . Non-combat . | . . . Combat . | . . . Robot Hacks Applied . | . . . Relay Couplers Released . | . . . Robots Rewired . | . . . Allies Hacked . | . . . Hacks Repelled . | . . . Allies | -11 -10 -9 -------- Run | Scr Mat Mat Total Allies . | . . . Largest Group . | . . . Highest-Rated Group . | . . . Highest-Rated Ally . | . . . Total Orders . | . . . Ally Attacks . | . . . Total Damage . | . . . Kills . | . . . Allies Corrupted . | . . . Allies Melted . | . . . Intel | -11 -10 -9 ------- Run | Scr Mat Mat Robot Analysis Total 2 | . 2 . Derelict Logs Recovered . | . . . Drone Launches . | . . . Drone Recoveries . | . . . Exploration | -11 -10 -9 ------------- Run | Scr Mat Mat Turns Passed 1468 | 64 1042 362 Spaces Moved 923 | 47 647 229 Core 12 | 6 . 6 Treads . | . . . Legs 875 | 41 647 187 Wheels 36 | . . 36 Hover . | . . . Flight . | . . . Fastest Speed 50 | 50 120 80 Average Speed 127 | 111 130 123 Slowest Speed 350 | 120 190 350 Overloaded Moves . | . . . Propulsion Burnouts . | . . . Robots Hopped . | . . . Cave-ins Triggered . | . . . Exploration Rate (%) 41 | 3 99 22 Regions Visited 2 Branch Regions . Pre-discovered Areas . | . . . Known Exits Taken . | . . . Unknown Exits Taken 2 | 1 1 . Scrap Searched . | . . . Spaces Dug . | . . . Terrain Destroyed 42 | . 6 36 Melee . | . . . Projectile . | . . . AOE 42 | . 6 36 Terrain Rammed . | . . . Walls Destroyed . | . . . Machines Disabled . | . . . Actions | -11 -10 -9 --------- Run | Scr Mat Mat Total 1101 | 56 758 287 Wait 41 | . 10 31 Move 921 | 46 646 229 Hop . | . . . Pick Up 14 | 4 7 3 Fast Attach 16 | 6 5 5 Attach 8 | . 3 5 Detach 4 | . 1 3 Swap 17 | . 16 1 Drop 19 | . 19 . Fire 60 | . 51 9 Melee . | . . . Ram 1 | . . 1 Kick . | . . . Crush . | . . . Escape Stasis . | . . . Rewire . | . . . Trap . | . . . Miscellaneous . | . . . Route ------- -11/Scrapyard -10/Materials (discovered 5 exits: *Mat x3 / [*Min x2]) -9/Materials History --------- Turn | Location | Event 6 | -11/Scrapyard | Discovered new exit (range 15) 65 | -11/Scrapyard | Entered Materials 328 | -10/Materials | Discovered new exit (range 8) 492 | -10/Materials | Discovered new exit (range 3) 727 | -10/Materials | Discovered new exit (range 14) 789 | -10/Materials | Build established: Mutant 804 | -10/Materials | Discovered new exit (range 15) 843 | -10/Materials | Discovered new exit (range 10) 1107 | -10/Materials | Entered another Materials area 1107 | -9/Materials | Evolved 2 slots: Propulsion x1, Utility x1 1350 | -9/Materials | Destroyed 9 combat bots 1360 | -9/Materials | Lost 3 parts (1n1u1w) 1439 | -9/Materials | Core integrity fell below 50% 1464 | -9/Materials | Core integrity fell below 20% 1469 | -9/Materials | Destroyed by Y-45 Defender with Beam Rifle Last Messages --------------- K-01 Serf crushed by falling debris. K-01 Serf system corrupted by crushing effect. Acquired Wheel. Sml. Laser destroyed. Acquired Wheel. Critical hit (Burn: +37). Wheel destroyed. Triggered Blade Trap. Massive razor-sharp blades shoot up from within the floor. Sml. Laser severed. Ion Engine severed. Wheel severed. Wheel destroyed. Acquired Wheel. Acquired Sml. Laser. Wheel destroyed. Critical hit (Burn: +37). Slammed into Y-45 Defender. Sml. Laser destroyed. G-34 Mercenary destroyed. Map ----- +----------------------------------------------------+ | | | | | | | | | | | | | | | | | | | | | | | | | | | | | | | ?????#########???????????????????????????????????? | | ?????# T #???????????????????????????????????? | | ?????# """ #???????????????????????????????????? | | ?????# ! """ #???????????????????????????????????? | | ?????# """ #???????????????????????????????????? | | ??????? ?????????????????????????????????????? | | ?????####+####???????????????????????????????????? | | ?????# #???????????????????????????????????? | | ##T### #??????????##+##????????????????????? | | ! #??????????# #????????????????????? | | ##########?#@ #????????????????????? | | # #?# Y #????????????????????? | | """" """" # #?##g##????????????????????? | | """" """" # #??#Y#?????????????????????? | | """" """" # * #??#Y#?????????????????????? | | / * #??#Y#?????????????????????? | | ! # #??# #?????????????????????? | | # #??# #??#####??????????????? | | ! # #??# #? ???????????????? | | ########## # #??# #? """???????????????? | | # # #####/####### # """""??????????????? | | # # * # """""??????????????? | | # + + """""??????????????? | | # # # """ ?????????????? | | # ! # ###+######+#### #????????????? | | # # # # ??? #????????????? | | # = # # T / #""" =#?? !#????????????? | | # # # #""" #???#######????????????? | | # # # #""" #??????????????????????? | | ########## + ! # !#??????????????????????? | | ?????????# # #""" #??????????????????????? | | ?????????# ########""" #??????????????????????? | | ?????????# #?????????? #??????????????????????? | | ?????????# #?????????? #??????????????????????? | | ########## #??????????" #??????????????????????? | +----------------------------------------------------+ Best States ------------- Heat Dissipation 28 Energy Generation 10 Energy Capacity 250 Matter Stores 300 Matter Capacity 300 Sight Range 16 Robot Scan Range 14 Terrain Scan Density 10 Evasion (%) 55 Targeting Accuracy 5 Item Schematics ----------------- None Robot Schematics ------------------ None Fabricated ------------ Nothing Alien Tech Used ----------------- None Achievements -------------- None Challenges ------------ None Game ------ Seed BombFlakAutohacker Manual? 0 Play Time 00:16:10 Cumulative 20.3 hours Start 2021.10.26 @ 00:37:24 End 2021.10.26 @ 00:50:53 Sessions 1 Manual Loads 0 Difficulty Rogue Special Mode None Game No. 38 Rogue 18 Adventurer 17 Explorer 3 Win Type - Total 0 Types 0/0/0/0/0/0/0/0/0 Lore% 11 Gallery% 22 Achievement% 37 Wizard Run 0 Options --------- ASCII 1 Keyboard 1 Movement Vi Keybinds 0 Fullscreen 2 Font 14/Terminus Map View 72x54 Tactical HUD 0 Map Filters NONE Filters NONE Steam 1 RUN: b78bf499-5537-406b-9fe4-4b4ad305b8c4